Cogmind - Beta 14 @@@ ROGUE MODE // 2025.03.30 @ 14:35:53 Player: SirusTheMadDJ Result: Destroyed by 86-UB0(R) with Subdweller Machine Gun Performance ------------- Evolutions (0) 0 Regions Visited (2) 400 Robots Destroyed (20) 100 Value Destroyed (479) 479 Prototype IDs (0) 0 Alien Tech Used (0) 0 Bonus (0) 0 TOTAL SCORE: 979 Bonus ------- None Cogmind --------- Core Integrity 0/250 Matter 129/300 Energy 98/100 System Corruption 0% Temperature Cool (1) Movement Treading (160) Location -10/Subcaves Parts ------- > --- POWER (1) -------- (None) > --- PROPULSION (2) --- Spiked Treads > --- UTILITY (2) ------ Small Storage Unit Terrain Scan Processor > --- WEAPON (2) ------- Battle Rifle Battle Cannon > --- INVENTORY (8) ---- Subdweller Monowheel Grenade Launcher Peak State ------------ > --- POWER ------------ Light Ion Engine > --- PROPULSION ------- Spiked Treads Aluminum Leg > --- UTILITY ---------- Small Storage Unit Terrain Scan Processor > --- WEAPON ----------- Battle Rifle Grenade Launcher > --- INVENTORY -------- Subdweller Monowheel [Rating: 10] Favorites ----------- Power Light Ion Engine Engine Light Ion Engine Propulsion Aluminum Leg Treads Spiked Treads Leg Aluminum Leg Utility Small Storage Unit Storage Small Storage Unit Processor Terrain Scan Processor Weapon Grenade Launcher Energy Gun Medium Laser Ballistic Gun Battle Rifle Ballistic Cannon Battle Cannon Launcher Grenade Launcher Special Melee Weapon Datajack Build | -11 -10 -10 ------- Run | Yrd Mat Sub Slots Evolved . | . . . Power . | . . . Propulsion . | . . . Utility . | . . . Weapon . | . . . Parts Attached 21 | 6 8 7 Power 2 | 1 1 . Engine 2 | 1 1 . Core . | . . . Reactor . | . . . Propulsion 5 | 2 2 1 Treads 1 | . . 1 Leg 4 | 2 2 . Wheel . | . . . Hover . | . . . Flight . | . . . Utility 2 | 1 1 . Device . | . . . Storage 1 | 1 . . Processor 1 | . 1 . Hackware . | . . . Protection . | . . . Artifact . | . . . Weapon 12 | 2 4 6 Energy Gun 2 | 1 1 . Energy Cannon . | . . . Ballistic Gun 5 | 1 1 3 Ballistic Cannon 1 | . . 1 Launcher 3 | . 1 2 Special Weapon . | . . . Impact Weapon . | . . . Slashing Weapon . | . . . Piercing Weapon . | . . . Special Melee Weapon 1 | . 1 . Unidentified Prototypes . | . . . Parts Lost 9 | . 7 2 Power 2 | . 1 1 Propulsion 2 | . 1 1 Utility . | . . . Weapon 5 | . 5 . Highest Loss Streak 4 | . 4 1 To Critical Strikes . | . . . Average Slot Usage (%) 82 | . 81 84 Engine 13 | . 13 13 Treads 5 | . . 9 Leg 14 | . 27 6 Storage 14 | . 14 14 Processor 9 | . 1 14 Energy Gun 4 | . 12 . Ballistic Gun 9 | . 9 10 Ballistic Cannon 4 | . . 6 Launcher 6 | . 1 9 Peak Build Rating 10 | 6 7 10 Average Rating 7 | 4 5 8 On Entrance 4 | . 6 7 Naked Turns . | . . . Heaviest Build 14 | 14 14 14 Greatest Support 20 | 20 20 20 Greatest Overweight (x) 1 | . 1 1 Average Overweight (x) . | . . . Largest Inventory Capacity 8 | 8 8 8 Average Capacity 7 | 7 8 8 Most Carried 4 | . 4 3 Average Carried 1 | . 1 1 Final Capacity 8 | 8 8 8 Final Carried 2 | . . 2 Class Distribution -------------------- 87% | Mutant 12% | Scavenger-Mutant Dominant Class ---------------- Mutant | -10/Materials Mutant | -10/Subcaves Resources | -11 -10 -10 ----------- Run | Yrd Mat Sub Matter Collected 566 | 281 155 130 Remotely . | . . . Salvage Created 557 | 61 429 67 Parts 38 | 1 33 4 Haulers Intercepted . | . . . Recyclers Shooed . | . . . Parts Field Recycled . | . . . Retrieved Matter . | . . . Parts Self-Destructed 6 | . . 6 Prevented . | . . . Kills | -11 -10 -10 ------- Run | Yrd Mat Sub Combat Hostiles Destroyed 13 | . 10 3 Guns 8 | . 7 1 Cannons 1 | . . 1 AOE 4 | . 3 1 Classes Destroyed 8 | 1 6 1 Worker 1 | . 1 . Builder 2 | . 2 . Recycler 2 | 1 1 . Operator 1 | . 1 . Watcher 1 | . 1 . Swarmer 3 | . 3 . Grunt 7 | . 7 . Subdweller 3 | . . 3 Best Kill Streak 4 | 1 4 1 Combat Bots Only 3 | . 3 1 Max Kills in Single Turn 3 | 1 3 1 Gunslinging . | . . . Exploded 2 | . 2 1 Melee . | . . . Uniques/NPCs Destroyed . | . . . Combat | -11 -10 -10 -------- Run | Yrd Mat Sub Hostile Shots Fired 119 | . 107 12 Missed 44 | . 39 5 Damage Taken 1117 | . 758 359 Core 267 | . 157 110 Absorbed by Shields . | . . . Core Remaining (%) 100 | 100 . . Volleys Fired 71 | 7 38 26 Largest 2 | 2 2 2 Hottest 90 | 70 90 64 Shots Fired 108 | 14 61 33 Gun 79 | 14 58 7 Cannon 8 | . . 8 Launcher 21 | . 3 18 Special . | . . . Kinetic 45 | 7 23 15 Thermal 30 | 7 23 . Explosive 21 | . 3 18 Electromagnetic 12 | . 12 . Robot Hit Streak 9 | 4 9 6 Robot Miss Streak 3 | 2 3 2 Penetration Max . | . . . Secondary Targets . | . . . Shots Hit Robots 61 | 10 42 9 Core Hits 34 | 2 26 6 Critical Kills . | . . . Critical Parts Destroyed . | . . . Critical Strikes 3 | 1 2 . Burn 3 | 1 2 . Melee Attacks . | . . . Impact . | . . . Slashing . | . . . Piercing . | . . . Sneak Attacks . | . . . Combat Hostiles . | . . . Follow-up Attacks . | . . . Damage Inflicted 1308 | 134 896 278 Guns 700 | 134 528 38 Cannons 47 | . . 47 Explosions 561 | . 368 193 Melee . | . . . Ramming . | . . . Kinetic 362 | 83 194 85 Thermal 425 | 51 374 . Explosive 414 | . 221 193 Electromagnetic 107 | . 107 . Impact . | . . . Slashing . | . . . Piercing . | . . . Highest Corruption . | . . . Average Corruption . | . . . Corruption Purged . | . . . Corruption Blocked . | . . . Overload Shots . | . . . Overflow Damage . | . . . Projectiles . | . . . Explosions . | . . . Melee . | . . . Knockbacks . | . . . Impact . | . . . Kinetic . | . . . Secondary . | . . . Self-Inflicted Damage 21 | . . 21 Shots 3 | . . 3 Rammed . | . . . Targets Rammed . | . . . Kicked . | . . . Crushed . | . . . Highest Temperature 256 | 63 97 256 Average Temperature 38 | 32 32 149 Received Heat Transfer 602 | . 318 284 Effects 1 | . . 1 Interference 1 | . . 1 Siege Activations . | . . . Robots Corrupted . | . . . Combat Hostiles . | . . . Parts Fried . | . . . Impact Corruptions . | . . . Robots Melted . | . . . Combat Hostiles . | . . . Parts Melted 1 | . 1 . Heat Transferred 1186 | 222 964 . Parts Sabotaged . | . . . Parts Stolen . | . . . Parts Stripped . | . . . Power Chain Reactions 1 | . 1 . Alert | -11 -10 -10 ------- Run | Yrd Mat Sub Peak Influence 173 | 5 173 . Initial 3 | . 3 . Average 61 | 1 70 . Maximum Alert Level . | . . . Low Security (%) 100 | 100 100 . Level 1 . | . . . Level 2 . | . . . Level 3 . | . . . Level 4 . | . . . Level 5 . | . . . High Security . | . . . Max Security . | . . . Squads Dispatched 2 | . 2 . Investigation . | . . . Extermination . | . . . Reinforcement 2 | . 2 . Assault . | . . . Garrison . | . . . Intercept . | . . . Searches Triggered . | . . . Construction Impeded . | . . . Haulers Reinforced . | . . . Active Scanning Responses . | . . . Cargo Convoy Interrupts . | . . . Stealth | -11 -10 -10 --------- Run | Yrd Mat Sub Distress Signals 1 | . 1 . Communications Jammed . | . . . Distress Signals . | . . . Times Spotted 18 | . 14 4 Peak Tracking Total 7 | . 7 2 Tactical Retreats 1 | . 1 . Traps | -11 -10 -10 ------- Run | Yrd Mat Sub Traps Triggered 3 | . . 3 Indirectly . | . . . Trap Hack Attempts . | . . . Triggered . | . . . Disarmed . | . . . Reprogrammed . | . . . Reused . | . . . Traps Extracted . | . . . Installed . | . . . Triggered . | . . . Machines | -11 -10 -10 ---------- Run | Yrd Mat Sub Machines Disabled 1 | . 1 . Max in Single Turn 1 | . 1 . Machines Repaired . | . . . Machines Dismantled . | . . . Machines Sabotaged . | . . . Overloaded Fab Kills . | . . . Hacking | -11 -10 -10 --------- Run | Yrd Mat Sub Machines Accessed 2 | . 1 1 Terminals 1 | . 1 . Fabricators . | . . . Repair Stations . | . . . Recycling Units . | . . . Scanalyzers . | . . . Garrison Access . | . . . Total Hacks 5 | . 1 4 Successful 4 | . . 4 Failed 1 | . 1 . Catastrophic 1 | . 1 . Database Lockouts . | . . . Manual 1 | . 1 . Terminals 1 | . 1 . Fabricators . | . . . Repair Stations . | . . . Recycling Units . | . . . Scanalyzers . | . . . Garrison Access . | . . . Terminal Hacks 4 | . . 4 Record 4 | . . 4 Fabricator Hacks . | . . . Repair Station Hacks . | . . . Recycling Unit Hacks . | . . . Scanalyzer . | . . . Garrison Access Hacks . | . . . Unauthorized Hacks . | . . . Terminals . | . . . Fabricators . | . . . Repair Stations . | . . . Recycling Units . | . . . Scanalyzers . | . . . Garrison Access . | . . . Data Cores Recovered . | . . . Used . | . . . Hacking Detections . | . . . Full Trace Events . | . . . Feedback Events . | . . . Feedback Blocked . | . . . Robot Schematics Acquired . | . . . Robots Built . | . . . Authchips . | . . . Time . | . . . Total Robot Build Rating . | . . . Part Schematics Acquired . | . . . Parts Built . | . . . Authchips . | . . . Time . | . . . Total Part Build Rating . | . . . Parts Repaired . | . . . Time . | . . . Parts Recycled . | . . . Recycled Matter . | . . . Retrieved Matter . | . . . Retrieved Components . | . . . Parts Scanalyzed . | . . . Part Schematics Acquired . | . . . Parts Damaged . | . . . Bothacking | -11 -10 -10 ------------ Run | Yrd Mat Sub Used RIF Installer . | . . . Robots Hacked . | . . . Non-combat . | . . . Combat . | . . . Robot Hacks Applied . | . . . Relay Couplers Released . | . . . Fabnet Peak Effective % . | . . . Robots Rewired . | . . . Allies Hacked . | . . . Hacks Repelled . | . . . Allies | -11 -10 -10 -------- Run | Yrd Mat Sub Total Allies . | . . . Largest Group . | . . . Highest-Rated Group . | . . . Highest-Rated Ally . | . . . Total Orders . | . . . Ally Attacks . | . . . Total Damage . | . . . Kills . | . . . Allies Corrupted . | . . . Allies Melted . | . . . Intel | -11 -10 -10 ------- Run | Yrd Mat Sub Robot Analysis Total . | . . . Derelict Logs Recovered . | . . . Drone Launches . | . . . Drone Recoveries . | . . . Exploration | -11 -10 -10 ------------- Run | Yrd Mat Sub Turns Passed 1432 | 75 507 850 Spaces Moved 843 | 41 311 491 Core 5 | 5 . . Treads 317 | . . 317 Legs 521 | 36 311 174 Wheels . | . . . Hover . | . . . Flight . | . . . Fastest Speed 50 | 50 120 120 Average Speed 142 | 111 120 158 Slowest Speed 190 | 120 190 190 Overloaded Moves . | . . . Propulsion Burnouts . | . . . Robots Hopped . | . . . Cave-ins Triggered . | . . . Exploration Rate (%) 21 | 4 28 32 Regions Visited 2 Branch Regions 1 Pre-discovered Areas 1 | . . 1 Known Exits Taken . | . . . Unknown Exits Taken 2 | 1 1 . Scrap Searched . | . . . Spaces Dug . | . . . Terrain Destroyed 111 | . 6 105 Melee . | . . . Projectile 1 | . . 1 AOE 110 | . 6 104 Terrain Rammed . | . . . Walls Destroyed . | . . . Machines Disabled . | . . . Actions | -11 -10 -10 --------- Run | Yrd Mat Sub Total 964 | 53 381 530 Wait 21 | . 21 . Move 841 | 40 310 491 Hop . | . . . Pick Up 6 | . 3 3 Fast Attach 11 | 6 4 1 Attach 6 | . 3 3 Detach 2 | . . 2 Swap 4 | . 1 3 Drop 2 | . 1 1 Fire 71 | 7 38 26 Melee . | . . . Ram . | . . . Kick . | . . . Crush . | . . . Escape Stasis . | . . . Rewire . | . . . Trap . | . . . Miscellaneous . | . . . Route ------- -11/Scrapyard -10/Materials -10/Subcaves History --------- Turn | Location | Event 25 | -11/Scrapyard | Discovered new exit (range 15) 76 | -11/Scrapyard | Entered Materials 305 | -10/Materials | Build established: Mutant 505 | -10/Materials | Core integrity fell below 50% 543 | -10/Materials | Discovered new exit (range 15) 563 | -10/Materials | Lost 4 parts (1p1n2w) 583 | -10/Materials | Entered Subcaves 664 | -10/Subcaves | Core integrity fell below 20% 679 | -10/Subcaves | Shifting Twisted Machinery released Battle Rifle 849 | -10/Subcaves | Shifting Twisted Machinery released Spk. Treads 955 | -10/Subcaves | Shifting Twisted Machinery released Battle Cannon 1030 | -10/Subcaves | Ambushed by Subdweller buried in earth 1185 | -10/Subcaves | Visited Clippyterm 1190 | -10/Subcaves | Learned location of Extension (-6) 1431 | -10/Subcaves | A swath of the cavern ceiling suddenly collapsed 1433 | -10/Subcaves | Destroyed by 86-UB0(R) with Subdweller Machine Gun Last Messages --------------- right? Don't bother with early when it comes to the Lifeworm, it's never early, but by some measures it might be just in time... >>Record! "LRC-V1" It looks like you're REDACTED, I can suggest REDACTED and REDACTED. Also definitely avoid REDACTED. Lgt. Ion Engine destroyed. Critical hit (Meltdown: +260). A5-5FS(R) destroyed. Overheating: System interference. Terrain Scan Processor temporarily disabled. Subatomizers dissect the Disposable Heat Sink. Acquired 20 matter. Acquired 42 matter. Subatomizers dissect the Disposable Heat Sink. Acquired 7 matter. A swath of the cavern ceiling suddenly collapses. Acquired 10 matter. Map ----- +----------------------------------------------------+ | ?????????????????????????????????????????????????? | | ?????????????????????????????????????????????????? | | ?????????????????????????????????????????????????? | | ?????????????????????????????????????????????????? | | ?????????????????????????????????????????????????? | | ?????????????????????????????????????????????????? | | ? ?????????????????????????????????????????????? | | ? #????????# ???????????????????????????????????? | | # #???????# ???????????????????????????????????? | | # ##?????? ???????????????????????????????????? | | ##?#### ???????????????????????????????????? | | ### ???????????????????????????????????? | | #???????????????????????????????????? | | #????????????????????????????????????? | | #????????????????????????????????????? | | ## ####?????????????????????????????????? | | ### ##????????????????????????????????? | | ## ##???????????????????????????????? | | ###?????????????????????????????? | | ##????????????????????????????? | | ##???????????????????????????? | | ##??????????????????????????? | | # ! ###????????????????????????? | | ## & #????????????????????????? | | ?## ######????????????????????? | | ??# ## #;@ #????????????????????? | | ?# ## #### #; #????????????????????? | | # ?# ##??## # ; #????????????????????? | | ##????## ##; ???????????????????? | | ##??????# ## #?????????????????? | | ##?????? ## # ###?????????????????? | | ### ?????? #### ##???????????????????? | | ##?? ???? ##?? #????????????????????? | | ###???? ??# #???# ????????????????????? | | ??????? ??## ##???? #???????????????????? | | ? ???????? #??# ??????# ???????????????????? | | ? ???????? ???## ??????? #???????????????????? | | ?????????? ???????#??????? #???????????????????? | | ??????????????????????????# ???????????????????? | | ??????????????????????????? ???????????????????? | | ??????????????????????????? ?????????????????????? | | ?????????????????????????????????????????????????? | | ?????????????????????????????????????????????????? | | ?????????????????????????????????????????????????? | | ?????????????????????????????????????????????????? | | ?????????????????????????????????????????????????? | | ?????????????????????????????????????????????????? | | ?????????????????????????????????????????????????? | | ?????????????????????????????????????????????????? | | ?????????????????????????????????????????????????? | +----------------------------------------------------+ Best States ------------- Heat Dissipation 25 Energy Generation 10 Energy Capacity 250 Matter Stores 300 Matter Capacity 300 Sight Range 16 Terrain Scan Density 85 Evasion (%) 55 Recoil Reduction 1 Item Schematics ----------------- None Robot Schematics ------------------ None Fabricated ------------ Nothing Alien Tech Used ----------------- None Achievements -------------- None Challenges ------------ None Game ------ Seed ShockSuperquantumFrame Manual? 0 Play Time 00:12:25 Cumulative 12.4 hours Start 2025.03.30 @ 14:23:28 End 2025.03.30 @ 14:35:53 Sessions 1 Manual Loads 0 Difficulty Rogue Special Mode None Game No. 30 Rogue 30 Adventurer 0 Explorer 0 Win Type - Total 0 Types 0/0/0/0/0/0/0/0/0 Lore% 5 Gallery% 16 Achievement% 15 Wizard Run 0 Options --------- Layout 1 ASCII 0 Keyboard 0 Movement Mouse Keybinds 0 Fullscreen 1 Font 24/Smallcaps Map View 50x35 Zoom Use 0% Tactical HUD 0 Map Filters NONE Filters NONE Steam 1 RUN: 0befbd05-6e67-4585-a91d-e0fae61308e9